[Event "Championnat d'Europe Rapide"]
[Date "2024.12.07"]
[White "Todorovic, Goran N"]
[Black "Kozul, Zdenko"]
[WhiteElo "2256"]
[BlackElo "2519"]
[Round "6.23"]
[Result "0-1"]
[TimeControl "900+10"]

1. Nf3 {[%emt 00:00:02] [%clk 00:15:17]} Nf6 {[%emt 00:00:04] [%clk 00:15:18]}
2. c4 {[%clk 00:15:25]} g6 {[%emt 00:00:02] [%clk 00:15:26]} 3. Nc3 {[%emt
00:00:02] [%clk 00:15:34]} Bg7 {[%emt 00:00:01] [%clk 00:15:35]} 4. e4 {[%clk
00:15:42]} d6 {[%emt 00:00:02] [%clk 00:15:44]} 5. d4 {[%emt 00:00:01] [%clk
00:15:51]} O-O {[%emt 00:00:02] [%clk 00:15:52]} 6. Be2 {[%clk 00:15:59]} e5
{[%emt 00:00:08] [%clk 00:15:55]} 7. Be3 {[%emt 00:00:03] [%clk 00:16:07]} c6
{[%emt 00:00:06] [%clk 00:15:59]} 8. d5 {[%emt 00:00:22] [%clk 00:15:54]} Ng4
{[%emt 00:00:03] [%clk 00:16:06]} 9. Bg5 {[%emt 00:00:29] [%clk 00:15:34]} f6
{[%emt 00:00:03] [%clk 00:16:15]} 10. Bc1 {[%emt 00:00:11] [%clk 00:15:33]} f5
{[%emt 00:00:04] [%clk 00:16:21]} 11. h3 {[%emt 00:00:55] [%clk 00:14:47]} Nf6
{[%emt 00:00:03] [%clk 00:16:28]} 12. Nd2 {[%emt 00:00:33] [%clk 00:14:24]} Na6
{[%emt 00:01:28] [%clk 00:15:10]} 13. Bf3 {[%emt 00:00:38] [%clk 00:13:56]} Nc5
{[%emt 00:01:52] [%clk 00:13:29]} 14. Qe2 {[%emt 00:00:02] [%clk 00:14:03]} cxd5
{[%emt 00:00:37] [%clk 00:13:02]} 15. cxd5 {[%emt 00:00:07] [%clk 00:14:06]} a5
{[%emt 00:00:05] [%clk 00:13:08]} 16. g4 {[%emt 00:01:14] [%clk 00:13:01]} b6
{[%emt 00:00:58] [%clk 00:12:22]} 17. a4 {[%emt 00:02:17] [%clk 00:10:53]} fxe4
{[%emt 00:01:12] [%clk 00:11:20]} 18. Bxe4 {[%emt 00:01:37] [%clk 00:09:25]} Ba6
{[%emt 00:00:56] [%clk 00:10:35]} 19. Nb5 {[%emt 00:00:04] [%clk 00:09:30]}
Nfxe4 {[%emt 00:00:44] [%clk 00:10:01]} 20. Nxe4 {[%emt 00:00:02] [%clk
00:09:38]} Nb3 {[%emt 00:00:02] [%clk 00:10:10]} 21. Bg5 {[%emt 00:01:50] [%clk
00:07:57]} Qd7 {[%emt 00:00:10] [%clk 00:10:11]} 22. Rd1 {[%emt 00:00:01] [%clk
00:08:05]} Nd4 {[%emt 00:00:11] [%clk 00:10:10]} 23. Rxd4 {[%emt 00:00:02] [%clk
00:08:14]} exd4 {[%emt 00:00:01] [%clk 00:10:19]} 24. O-O {[%emt 00:00:22] [%clk
00:08:01]} Rae8 {[%emt 00:00:57] [%clk 00:09:32]} 25. Qc2 {[%emt 00:02:26]} Re5
{[%clk 00:08:41]} 26. Bh4 {[%emt 00:00:20] [%clk 00:06:35]} Bxb5 {[%emt
00:00:37] [%clk 00:08:15]} 27. axb5 {[%emt 00:00:03] [%clk 00:06:39]} Rxd5
{[%emt 00:00:16] [%clk 00:08:12]} 28. Qc6 {[%emt 00:01:52] [%clk 00:04:57]} Qxc6
{[%emt 00:00:08] [%clk 00:08:14]} 29. bxc6 {[%emt 00:00:01] [%clk 00:05:05]} Rc8
{[%emt 00:00:01] [%clk 00:08:23]} 30. Rc1 {[%emt 00:00:02] [%clk 00:05:13]} d3
{[%emt 00:00:03] [%clk 00:08:31]} 0-1

[Site "Europe Echecs"]

[Event "Championnat d'Europe Rapide"]
[Date "2024.12.07"]
[White "Kazakouski, Valery"]
[Black "Krallis, Christos"]
[WhiteElo "2567"]
[BlackElo "2383"]
[Round "6.24"]
[Result "1-0"]
[TimeControl "900+10"]

1. Nf3 {[%emt 00:00:10] [%clk 00:15:09]} c5 {[%emt 00:00:18] [%clk 00:15:03]} 2.
e4 {[%emt 00:00:07] [%clk 00:15:13]} e6 {[%emt 00:00:10] [%clk 00:15:01]} 3. d4
{[%emt 00:00:03] [%clk 00:15:21]} cxd4 {[%emt 00:00:02] [%clk 00:15:08]} 4. Nxd4
{[%emt 00:00:03] [%clk 00:15:29]} Nf6 {[%emt 00:00:02] [%clk 00:15:15]} 5. Nc3
{[%emt 00:00:05] [%clk 00:15:34]} Nc6 {[%emt 00:00:03] [%clk 00:15:22]} 6. a3
{[%emt 00:00:17] [%clk 00:15:28]} Be7 {[%emt 00:00:18] [%clk 00:15:13]} 7. Be2
{[%emt 00:00:07] [%clk 00:15:32]} d6 {[%emt 00:00:30] [%clk 00:14:53]} 8. Be3
{[%emt 00:00:25] [%clk 00:15:16]} e5 {[%emt 00:00:19] [%clk 00:14:45]} 9. Nf3
{[%emt 00:00:17] [%clk 00:15:09]} O-O {[%emt 00:00:51] [%clk 00:14:04]} 10. O-O
{[%emt 00:00:07] [%clk 00:15:12]} Ng4 {[%emt 00:03:34] [%clk 00:10:40]} 11. Bc1
{[%emt 00:00:45] [%clk 00:14:37]} Be6 {[%emt 00:01:01] [%clk 00:09:48]} 12. h3
{[%emt 00:00:28] [%clk 00:14:19]} Nf6 {[%emt 00:00:05] [%clk 00:09:53]} 13. Bg5
{[%emt 00:00:02] [%clk 00:14:27]} h6 {[%emt 00:01:45] [%clk 00:08:19]} 14. Bxf6
{[%emt 00:00:02] [%clk 00:14:35]} Bxf6 {[%emt 00:00:02] [%clk 00:08:26]} 15. Nd5
{[%emt 00:00:11] [%clk 00:14:35]} Bg5 {[%emt 00:01:02] [%clk 00:07:34]} 16. c3
{[%emt 00:00:12] [%clk 00:14:32]} Kh8 {[%emt 00:02:05] [%clk 00:05:39]} 17. Bc4
{[%emt 00:00:46] [%clk 00:13:56]} f5 {[%emt 00:00:16] [%clk 00:05:33]} 18. exf5
{[%emt 00:00:17] [%clk 00:13:51]} Rxf5 {[%emt 00:00:28] [%clk 00:05:14]} 19. Bd3
{[%emt 00:00:59] [%clk 00:13:02]} Rf8 {[%emt 00:00:53] [%clk 00:04:32]} 20. Be4
{[%emt 00:00:05] [%clk 00:13:06]} Bf4 {[%emt 00:00:19] [%clk 00:04:22]} 21. Qd3
{[%emt 00:00:22] [%clk 00:12:53]} Bxd5 {[%emt 00:02:00] [%clk 00:02:34]} 22.
Bxd5 {[%emt 00:00:05] [%clk 00:12:57]} Qd7 {[%emt 00:00:55] [%clk 00:01:50]} 23.
Rad1 {[%emt 00:00:06] [%clk 00:13:00]} Ne7 {[%emt 00:00:16] [%clk 00:01:45]} 24.
Qe4 {[%emt 00:00:35] [%clk 00:12:35]} Rab8 {[%emt 00:00:57] [%clk 00:00:58]} 25.
Rd3 {[%emt 00:00:12] [%clk 00:12:32]} h5 {[%emt 00:00:26] [%clk 00:00:43]} 26.
Ba2 {[%emt 00:00:13] [%clk 00:12:29]} Qc6 {[%emt 00:00:15] [%clk 00:00:37]} 27.
Re1 {[%emt 00:00:30] [%clk 00:12:09]} Rfd8 {[%emt 00:00:11] [%clk 00:00:37]} 28.
Bd5 {[%emt 00:00:14] [%clk 00:12:05]} Qc7 {[%emt 00:00:24] [%clk 00:00:23]} 29.
Red1 {[%emt 00:00:10] [%clk 00:12:05]} b5 {[%emt 00:00:10] [%clk 00:00:24]} 30.
Ba2 {[%emt 00:00:03] [%clk 00:12:11]} Qc6 {[%emt 00:00:18] [%clk 00:00:16]} 31.
Bd5 {[%emt 00:01:09] [%clk 00:11:12]} Qc8 {[%emt 00:00:01] [%clk 00:00:25]} 32.
g3 {[%emt 00:00:05] [%clk 00:11:17]} Bh6 {[%emt 00:00:06] [%clk 00:00:29]} 33.
Kg2 {[%emt 00:00:03] [%clk 00:11:24]} Rf8 {[%emt 00:00:16] [%clk 00:00:22]} 34.
Ba2 {[%emt 00:00:09] [%clk 00:11:26]} Qf5 {[%emt 00:00:11] [%clk 00:00:21]} 35.
Re1 {[%emt 00:01:56] [%clk 00:09:40]} Qf6 {[%emt 00:00:01] [%clk 00:00:29]} 36.
Bb1 {[%emt 00:00:08] [%clk 00:09:42]} g6 {[%emt 00:00:04] [%clk 00:00:36]} 37.
Re2 {[%emt 00:00:20] [%clk 00:09:32]} Bg7 {[%emt 00:00:14] [%clk 00:00:32]} 38.
Ba2 {[%emt 00:00:10] [%clk 00:09:33]} Rbd8 {[%emt 00:00:07] [%clk 00:00:34]} 39.
Nd2 {[%emt 00:00:12] [%clk 00:09:31]} Qf5 {[%emt 00:00:10] [%clk 00:00:34]} 40.
Bd5 {[%emt 00:00:26] [%clk 00:09:15]} Bh6 {[%emt 00:00:16] [%clk 00:00:28]} 41.
Nb3 {[%emt 00:00:33] [%clk 00:08:52]} Qg5 {[%emt 00:00:18] [%clk 00:00:20]} 42.
h4 {[%emt 00:00:16] [%clk 00:08:46]} Qf5 {[%emt 00:00:02] [%clk 00:00:28]} 43.
Na5 {[%emt 00:00:06] [%clk 00:08:50]} Rd7 {[%emt 00:00:15] [%clk 00:00:23]} 44.
Nc6 {[%emt 00:00:24] [%clk 00:08:36]} Qxe4+ {[%emt 00:00:18] [%clk 00:00:15]}
45. Bxe4 {[%emt 00:00:07] [%clk 00:08:39]} Rf6 {[%emt 00:00:10] [%clk 00:00:14]}
46. Nxe5 {[%emt 00:00:13] [%clk 00:08:37]} Rd8 {[%emt 00:00:01] [%clk 00:00:23]}
47. Nc6 {[%emt 00:00:07] [%clk 00:08:40]} Nxc6 {[%emt 00:00:02] [%clk 00:00:31]}
48. Bxc6 {[%emt 00:00:02] [%clk 00:08:48]} a6 {[%emt 00:00:15] [%clk 00:00:26]}
49. Re7 {[%emt 00:00:04] [%clk 00:08:54]} Bc1 {[%emt 00:00:06] [%clk 00:00:30]}
50. Re2 {[%emt 00:00:13] [%clk 00:08:51]} Bh6 {[%emt 00:00:06] [%clk 00:00:33]}
51. f4 {[%emt 00:00:05] [%clk 00:08:57]} Kg7 {[%emt 00:00:14] [%clk 00:00:28]}
52. Bd5 {[%emt 00:00:14] [%clk 00:08:53]} Rf5 {[%emt 00:00:11] [%clk 00:00:28]}
53. Re7+ {[%emt 00:00:03] [%clk 00:09:00]} Kf8 {[%emt 00:00:04] [%clk 00:00:34]}
54. Ra7 {[%emt 00:00:32] [%clk 00:08:39]} Re8 {[%emt 00:00:02] [%clk 00:00:42]}
55. Kf3 {[%emt 00:00:20] [%clk 00:08:29]} Re1 {[%emt 00:00:09] [%clk 00:00:42]}
56. Rxa6 {[%emt 00:00:15] [%clk 00:08:24]} Rf1+ {[%emt 00:00:11] [%clk
00:00:41]} 57. Kg2 {[%emt 00:00:08] [%clk 00:08:27]} Rb1 {[%emt 00:00:02] [%clk
00:00:49]} 58. Rd2 {[%emt 00:00:12] [%clk 00:08:26]} Re5 {[%emt 00:00:15] [%clk
00:00:44]} 59. Rxd6 {[%emt 00:00:48] [%clk 00:07:47]} Ree1 {[%emt 00:00:09]
[%clk 00:00:45]} 60. Rxg6 {[%emt 00:00:14] [%clk 00:07:43]} Bg7 {[%emt 00:00:14]
[%clk 00:00:40]} 61. Rg5 {[%emt 00:00:24] [%clk 00:07:30]} Rg1+ {[%emt 00:00:23]
[%clk 00:00:26]} 62. Kh3 {[%emt 00:00:13] [%clk 00:07:27]} Rbe1 {[%emt 00:00:06]
[%clk 00:00:31]} 63. Rxh5 {[%emt 00:00:30] [%clk 00:07:07]} Re3 {[%emt 00:00:04]
[%clk 00:00:37]} 64. Bg2 {[%emt 00:00:04] [%clk 00:07:12]} 1-0

[Site "Europe Echecs"]

[Event "Championnat d'Europe Rapide"]
[Date "2024.12.07"]
[White "Popovic, Milos T"]
[Black "Alonso Rosell, Alvar"]
[WhiteElo "2334"]
[BlackElo "2532"]
[Round "6.25"]
[Result "1-0"]
[TimeControl "900+10"]

1. d4 {[%emt 00:00:01] [%clk 00:15:18]} Nf6 {[%emt 00:00:04] [%clk 00:15:18]} 2.
Bg5 {[%emt 00:00:02] [%clk 00:15:25]} d5 {[%emt 00:00:24] [%clk 00:15:05]} 3.
Bxf6 {[%emt 00:00:02] [%clk 00:15:32]} gxf6 {[%emt 00:00:10] [%clk 00:15:05]} 4.
c4 {[%emt 00:00:03] [%clk 00:15:39]} c5 {[%emt 00:02:36] [%clk 00:12:39]} 5.
cxd5 {[%emt 00:00:25] [%clk 00:15:25]} Qxd5 {[%emt 00:00:03] [%clk 00:12:46]} 6.
Nf3 {[%clk 00:15:34]} cxd4 {[%emt 00:00:34] [%clk 00:12:22]} 7. Nc3 {[%emt
00:00:01] [%clk 00:15:43]} Qd8 {[%emt 00:02:22]} 8. Nxd4 {[%clk 00:15:47]} Bg7
{[%emt 00:00:19] [%clk 00:10:06]} 9. e3 {[%emt 00:00:02] [%clk 00:15:55]} a6
{[%emt 00:00:37] [%clk 00:09:39]} 10. Qh5 {[%emt 00:00:18] [%clk 00:15:46]} e6
{[%emt 00:00:38] [%clk 00:09:12]} 11. Rd1 {[%emt 00:03:06] [%clk 00:12:49]} Qb6
{[%emt 00:02:02] [%clk 00:07:20]} 12. Bc4 {[%emt 00:00:02] [%clk 00:12:57]} Qxb2
{[%emt 00:01:02] [%clk 00:06:28]} 13. O-O {[%emt 00:00:03] [%clk 00:13:05]} O-O
{[%emt 00:03:21] [%clk 00:03:17]} 14. Ne4 {[%emt 00:00:21] [%clk 00:12:54]} h6
{[%emt 00:00:32] [%clk 00:02:55]} 15. Nd6 {[%emt 00:01:44] [%clk 00:11:20]} Qb6
{[%emt 00:00:12] [%clk 00:02:52]} 16. N4f5 {[%emt 00:02:07] [%clk 00:09:24]}
exf5 {[%emt 00:00:08] [%clk 00:02:54]} 17. Bxf7+ {[%emt 00:00:52] [%clk
00:08:41]} Kh8 {[%emt 00:00:16] [%clk 00:02:48]} 18. Bb3 {[%emt 00:01:43] [%clk
00:07:08]} Nc6 {[%emt 00:00:23] [%clk 00:02:35]} 19. Nf7+ {[%emt 00:00:01] [%clk
00:07:17]} Kh7 {[%emt 00:00:08] [%clk 00:02:37]} 20. Rd6 {[%clk 00:07:26]} Qxb3
{[%emt 00:02:29] [%clk 00:00:19]} 21. axb3 {[%emt 00:00:02] [%clk 00:07:34]} Ne7
{[%emt 00:00:02] [%clk 00:00:27]} 22. Nd8 {[%emt 00:00:27] [%clk 00:07:17]} Ng6
{[%emt 00:00:11] [%clk 00:00:26]} 23. Ne6 {[%emt 00:00:03] [%clk 00:07:24]} Bxe6
{[%emt 00:00:10] [%clk 00:00:26]} 24. Rxe6 {[%emt 00:00:01] [%clk 00:07:33]} f4
{[%emt 00:00:04] [%clk 00:00:32]} 25. Qf5 {[%emt 00:00:01] [%clk 00:07:42]} Rf7
{[%emt 00:00:24] [%clk 00:00:18]} 26. h4 {[%clk 00:07:50]} h5 {[%emt 00:00:01]
[%clk 00:00:28]} 27. Qxh5+ {[%clk 00:07:59]} Bh6 {[%emt 00:00:01] [%clk
00:00:37]} 28. Qf5 {[%emt 00:00:03] [%clk 00:08:06]} Kg7 {[%emt 00:00:01] [%clk
00:00:46]} 29. h5 {[%emt 00:00:04] [%clk 00:08:12]} Nf8 {[%emt 00:00:04] [%clk
00:00:52]} 30. Re4 {[%emt 00:00:05] [%clk 00:08:16]} fxe3 {[%emt 00:00:11] [%clk
00:00:51]} 31. fxe3 {[%emt 00:00:12] [%clk 00:08:15]} Rd8 {[%emt 00:00:05] [%clk
00:00:56]} 32. Re7 {[%emt 00:00:48] [%clk 00:07:37]} Rd6 {[%emt 00:00:01] [%clk
00:01:05]} 33. Rxf7+ {[%emt 00:00:01] [%clk 00:07:46]} Kxf7 {[%emt 00:00:01]
[%clk 00:01:14]} 34. e4 {[%clk 00:07:55]} Re6 {[%emt 00:01:09] [%clk 00:00:15]}
35. e5 {[%emt 00:00:02] [%clk 00:08:04]} Be3+ {[%emt 00:00:02] [%clk 00:00:23]}
36. Kh1 {[%emt 00:00:02] [%clk 00:08:11]} Bd4 {[%emt 00:00:05] [%clk 00:00:29]}
37. exf6 {[%emt 00:00:10] [%clk 00:08:10]} Bxf6 {[%emt 00:00:05] [%clk
00:00:35]} 38. g4 {[%emt 00:00:03] [%clk 00:08:17]} Ke7 {[%emt 00:00:06] [%clk
00:00:39]} 39. g5 {[%emt 00:00:01] [%clk 00:08:25]} 1-0

[Site "Europe Echecs"]

[Event "Championnat d'Europe Rapide"]
[Date "2024.12.07"]
[White "Baidetskyi, Valentin"]
[Black "Dragicevic, Drazen"]
[WhiteElo "2519"]
[BlackElo "2332"]
[Round "6.26"]
[Result "1/2-1/2"]
[TimeControl "900+10"]

1. e4 {[%emt 00:00:05] [%clk 00:15:18]} e5 {[%emt 00:00:11] [%clk 00:15:07]} 2.
Bc4 {[%emt 00:00:03] [%clk 00:15:24]} Nf6 {[%emt 00:01:04] [%clk 00:14:13]} 3.
d3 {[%emt 00:00:02] [%clk 00:15:33]} c6 {[%emt 00:02:21] [%clk 00:12:03]} 4. Nf3
{[%emt 00:00:02] [%clk 00:15:41]} d5 {[%emt 00:00:05] [%clk 00:12:07]} 5. Bb3
{[%emt 00:00:01] [%clk 00:15:50]} Bd6 {[%emt 00:00:28] [%clk 00:11:49]} 6. Nc3
{[%emt 00:00:06] [%clk 00:15:54]} d4 {[%emt 00:01:30] [%clk 00:10:29]} 7. Ne2
{[%emt 00:00:02] [%clk 00:16:02]} O-O {[%emt 00:00:06] [%clk 00:10:35]} 8. O-O
{[%emt 00:00:05] [%clk 00:16:05]} Nbd7 {[%emt 00:00:03] [%clk 00:10:42]} 9. c3
{[%emt 00:00:44] [%clk 00:15:31]} c5 {[%emt 00:02:02] [%clk 00:08:50]} 10. Ng3
{[%emt 00:00:01] [%clk 00:15:40]} a6 {[%emt 00:01:56] [%clk 00:07:04]} 11. Nf5
{[%emt 00:01:40] [%clk 00:14:09]} Bc7 {[%emt 00:00:02] [%clk 00:07:13]} 12. Ng5
{[%emt 00:00:49] [%clk 00:13:30]} b5 {[%emt 00:00:30] [%clk 00:06:53]} 13. Qf3
{[%emt 00:00:13] [%clk 00:13:26]} Nb6 {[%emt 00:00:09] [%clk 00:06:54]} 14. Rd1
{[%emt 00:02:01] [%clk 00:11:36]} h6 {[%emt 00:02:25] [%clk 00:04:39]} 15. Nh3
{[%emt 00:00:14] [%clk 00:11:32]} Bxf5 {[%emt 00:01:10] [%clk 00:03:39]} 16.
Qxf5 {[%emt 00:00:09] [%clk 00:11:34]} Qd7 {[%emt 00:00:06] [%clk 00:03:43]} 17.
Qf3 {[%emt 00:00:41] [%clk 00:11:02]} Qg4 {[%emt 00:00:08] [%clk 00:03:45]} 18.
Qxg4 {[%emt 00:00:02] [%clk 00:11:10]} Nxg4 {[%clk 00:03:54]} 19. Bd2 {[%emt
00:00:56] [%clk 00:10:25]} Rfd8 {[%emt 00:00:28] [%clk 00:03:36]} 20. Rac1
{[%emt 00:01:18] [%clk 00:09:17]} c4 {[%emt 00:00:33] [%clk 00:03:13]} 21. Bc2
{[%emt 00:00:01] [%clk 00:09:26]} dxc3 {[%emt 00:01:01] [%clk 00:02:22]} 22.
Bxc3 {[%emt 00:00:03] [%clk 00:09:33]} cxd3 {[%emt 00:00:03] [%clk 00:02:29]}
23. Bxd3 {[%emt 00:00:19] [%clk 00:09:24]} Na4 {[%emt 00:00:03] [%clk 00:02:36]}
24. Be2 {[%emt 00:00:04] [%clk 00:09:30]} Nf6 {[%emt 00:00:13] [%clk 00:02:33]}
25. Rxd8+ {[%emt 00:01:28] [%clk 00:08:12]} Rxd8 {[%emt 00:00:03] [%clk
00:02:40]} 26. Bb4 {[%emt 00:00:11] [%clk 00:08:11]} Bb6 {[%emt 00:01:26] [%clk
00:01:24]} 27. b3 {[%emt 00:00:04] [%clk 00:08:18]} Nb2 {[%emt 00:03:03]} 28.
Rc6 {[%clk 00:05:25]} Bd4 {[%emt 00:01:19] [%clk 00:00:24]} 29. Be7 {[%emt
00:00:13] [%clk 00:05:22]} Rd7 {[%emt 00:00:13] [%clk 00:00:21]} 30. Bxf6 {[%emt
00:00:09] [%clk 00:05:24]} gxf6 {[%emt 00:00:01] [%clk 00:00:30]} 31. Rxa6
{[%emt 00:01:07] [%clk 00:04:26]} Rc7 {[%emt 00:00:01] [%clk 00:00:39]} 32. g3
{[%emt 00:00:06] [%clk 00:04:31]} Rc2 {[%emt 00:00:06] [%clk 00:00:43]} 33. Kf1
{[%clk 00:04:39]} Rc1+ {[%emt 00:00:08] [%clk 00:00:45]} 34. Kg2 {[%emt
00:00:01] [%clk 00:04:48]} b4 {[%emt 00:00:26] [%clk 00:00:29]} 35. Rxf6 {[%emt
00:00:05] [%clk 00:04:53]} Kg7 {[%emt 00:00:08] [%clk 00:00:31]} 36. Ra6 {[%emt
00:00:07] [%clk 00:04:56]} Rc2 {[%emt 00:00:01] [%clk 00:00:39]} 37. Kf3 {[%emt
00:01:38] [%clk 00:03:28]} Rc3+ {[%emt 00:00:04] [%clk 00:00:46]} 38. Kg4 {[%emt
00:00:08] [%clk 00:03:30]} Rc2 {[%emt 00:00:13] [%clk 00:00:43]} 39. Bc4 {[%emt
00:01:11] [%clk 00:02:30]} Nxc4 {[%emt 00:00:26] [%clk 00:00:27]} 40. bxc4
{[%emt 00:00:02] [%clk 00:02:38]} Rxc4 {[%emt 00:00:02] [%clk 00:00:35]} 41. f4
{[%emt 00:01:00] [%clk 00:01:48]} Rc2 {[%emt 00:00:03] [%clk 00:00:42]} 42. fxe5
{[%emt 00:00:01] [%clk 00:01:57]} Bxe5 {[%emt 00:00:07] [%clk 00:00:46]} 43. Nf4
{[%emt 00:00:02] [%clk 00:02:04]} Bxf4 {[%emt 00:00:05] [%clk 00:00:51]} 44.
gxf4 {[%emt 00:00:05] [%clk 00:02:09]} Rxh2 {[%emt 00:00:05] [%clk 00:00:56]}
45. e5 {[%emt 00:00:06] [%clk 00:02:13]} Re2 {[%emt 00:00:23] [%clk 00:00:43]}
46. Ra7 {[%emt 00:00:27] [%clk 00:01:56]} Re4 {[%emt 00:00:18] [%clk 00:00:35]}
47. Rb7 {[%emt 00:01:21] [%clk 00:00:45]} Re2 {[%emt 00:00:29] [%clk 00:00:15]}
48. Ra7 {[%emt 00:00:09] [%clk 00:00:47]} Re4 {[%emt 00:00:03] [%clk 00:00:22]}
49. Kf5 {[%emt 00:00:02] [%clk 00:00:55]} Re2 {[%emt 00:00:03] [%clk 00:00:30]}
50. Ra4 {[%emt 00:00:16] [%clk 00:00:49]} Rb2 {[%emt 00:00:14] [%clk 00:00:25]}
51. e6 {[%emt 00:00:21] [%clk 00:00:38]} fxe6+ {[%emt 00:00:07] [%clk 00:00:28]}
52. Kxe6 {[%emt 00:00:18]} Re2+ {[%clk 00:00:22]} 53. Kf5 {[%emt 00:00:03] [%clk
00:00:53]} Rc2 {[%emt 00:00:11] [%clk 00:00:21]} 54. Ra7+ {[%emt 00:00:12] [%clk
00:00:51]} Kf8 {[%emt 00:00:04] [%clk 00:00:27]} 55. Ke5 {[%emt 00:00:33] [%clk
00:00:29]} Rc5+ {[%emt 00:00:12] [%clk 00:00:25]} 56. Ke6 {[%emt 00:00:01] [%clk
00:00:37]} Rc6+ {[%emt 00:00:10] [%clk 00:00:25]} 57. Kd5 {[%clk 00:00:46]} Rb6
{[%emt 00:00:04] [%clk 00:00:31]} 58. f5 {[%emt 00:00:18] [%clk 00:00:38]} b3
{[%emt 00:00:08] [%clk 00:00:32]} 59. axb3 {[%emt 00:00:04] [%clk 00:00:45]}
Rxb3 {[%emt 00:00:01] [%clk 00:00:41]} 60. f6 {[%emt 00:00:38] [%clk 00:00:17]}
Rd3+ {[%emt 00:00:33] [%clk 00:00:18]} 61. Ke4 {[%emt 00:00:08] [%clk 00:00:19]}
Rd1 {[%emt 00:00:03] [%clk 00:00:24]} 62. Kf5 {[%emt 00:00:12] [%clk 00:00:17]}
Rf1+ {[%emt 00:00:18] [%clk 00:00:16]} 63. Kg6 {[%emt 00:00:04] [%clk 00:00:24]}
Rg1+ {[%emt 00:00:02] [%clk 00:00:24]} 64. Kxh6 {[%emt 00:00:21] [%clk
00:00:13]} Rh1+ {[%emt 00:00:03] [%clk 00:00:30]} 65. Kg6 {[%emt 00:00:02] [%clk
00:00:22]} 1/2-1/2

[Site "Europe Echecs"]

[Event "Championnat d'Europe Rapide"]
[Date "2024.12.07"]
[White "Mamedov, Rauf"]
[Black "Dobrikov, Marco"]
[WhiteElo "2656"]
[BlackElo "2407"]
[Round "6.27"]
[Result "1-0"]
[TimeControl "900+10"]

1. e4 {[%emt 00:29:03] [%clk 00:15:20]} c5 {[%emt 00:00:02] [%clk 00:15:17]} 2.
Nf3 {[%emt 00:00:02] [%clk 00:15:27]} d6 {[%emt 00:00:01] [%clk 00:15:27]} 3.
Nc3 {[%clk 00:15:36]} Nf6 {[%emt 00:00:02] [%clk 00:15:35]} 4. e5 {[%clk
00:15:45]} dxe5 {[%clk 00:15:44]} 5. Nxe5 {[%clk 00:15:55]} Nbd7 {[%clk
00:15:53]} 6. d4 {[%clk 00:16:04]} cxd4 {[%emt 00:00:39] [%clk 00:15:25]} 7.
Qxd4 {[%emt 00:00:02] [%clk 00:16:12]} a6 {[%clk 00:15:34]} 8. Bf4 {[%emt
00:00:17] [%clk 00:16:04]} e6 {[%emt 00:00:03] [%clk 00:15:42]} 9. O-O-O {[%emt
00:00:11] [%clk 00:16:03]} Be7 {[%emt 00:00:20] [%clk 00:15:31]} 10. Be2 {[%emt
00:00:57] [%clk 00:15:16]} O-O {[%emt 00:00:05] [%clk 00:15:35]} 11. Bf3 {[%emt
00:00:04] [%clk 00:15:23]} Nxe5 {[%emt 00:00:52] [%clk 00:14:53]} 12. Qxd8
{[%emt 00:00:53] [%clk 00:14:40]} Rxd8 {[%emt 00:00:50] [%clk 00:14:14]} 13.
Bxe5 {[%emt 00:00:02] [%clk 00:14:48]} Nd7 {[%emt 00:01:51] [%clk 00:12:33]} 14.
Bc7 {[%emt 00:00:03] [%clk 00:14:55]} Re8 {[%emt 00:00:03] [%clk 00:12:40]} 15.
a4 {[%emt 00:00:19] [%clk 00:14:46]} Ra7 {[%emt 00:00:32] [%clk 00:12:19]} 16.
a5 {[%emt 00:00:01] [%clk 00:14:55]} Bd8 {[%emt 00:00:01] [%clk 00:12:28]} 17.
Bxd8 {[%emt 00:00:09] [%clk 00:14:55]} Rxd8 {[%emt 00:00:02] [%clk 00:12:37]}
18. Na4 {[%emt 00:00:17] [%clk 00:14:48]} Kf8 {[%emt 00:00:21] [%clk 00:12:25]}
19. Rd6 {[%emt 00:00:06] [%clk 00:14:52]} Re8 {[%emt 00:00:01] [%clk 00:12:34]}
20. Rhd1 {[%emt 00:00:15] [%clk 00:14:46]} Ke7 {[%emt 00:00:04] [%clk 00:12:40]}
21. b4 {[%emt 00:00:28] [%clk 00:14:29]} Ne5 {[%emt 00:00:35] [%clk 00:12:14]}
22. Nb6 {[%emt 00:00:02] [%clk 00:14:37]} Nxf3 {[%emt 00:00:37] [%clk 00:11:47]}
23. gxf3 {[%emt 00:00:01] [%clk 00:14:46]} e5 {[%clk 00:11:57]} 24. R6d5 {[%emt
00:00:24] [%clk 00:14:31]} f6 {[%emt 00:00:04] [%clk 00:12:03]} 25. Rc5 {[%emt
00:00:04] [%clk 00:14:37]} Bf5 {[%emt 00:00:17] [%clk 00:11:56]} 26. Rc7+ {[%emt
00:00:15] [%clk 00:14:32]} Kf8 {[%clk 00:12:05]} 27. c4 {[%emt 00:00:05] [%clk
00:14:37]} e4 {[%emt 00:00:06] [%clk 00:12:09]} 28. fxe4 {[%emt 00:00:04] [%clk
00:14:43]} Bxe4 {[%emt 00:00:05] [%clk 00:12:13]} 29. Rdd7 {[%emt 00:00:33]
[%clk 00:14:19]} g5 {[%emt 00:00:18] [%clk 00:12:06]} 30. Rf7+ {[%emt 00:00:12]
[%clk 00:14:17]} Kg8 {[%emt 00:00:06] [%clk 00:12:11]} 31. Rxf6 {[%emt 00:00:01]
[%clk 00:14:26]} 1-0

[Site "Europe Echecs"]